Cogmind - Beta 16.1 @@@ ROGUE MODE // 2026.03.22 @ 13:32:34 Player: Cica Result: Destroyed by YA-N4V(R) with Subdweller Machine Gun Performance ------------- Evolutions (0) 0 Regions Visited (2) 400 Robots Destroyed (17) 85 Value Destroyed (371) 371 Prototype IDs (0) 0 Alien Tech Used (0) 0 Bonus (0) 0 TOTAL SCORE: 856 Bonus ------- None Cogmind --------- Core Integrity 0/250 Matter 300/300 Energy 99/100 System Corruption 0% Temperature Cool (0) Movement Core (50) Location -10/Subcaves Parts ------- > --- POWER (1) -------- (None) > --- PROPULSION (2) --- (None) > --- UTILITY (2) ------ Core Shielding > --- WEAPON (2) ------- (None) > --- INVENTORY (5) ---- Light Ion Engine Subdweller Power Source Aluminum Leg Aluminum Leg Aluminum Leg Peak State ------------ > --- POWER ------------ Light Ion Engine > --- PROPULSION ------- Aluminum Leg Aluminum Leg > --- UTILITY ---------- Small Storage Unit Structural Scanner > --- WEAPON ----------- Small Laser Assault Rifle > --- INVENTORY -------- Light Ion Engine Aluminum Leg Aluminum Leg Aluminum Leg Aluminum Leg Scrap Shield Particle Gun [Rating: 8] Favorites ----------- Power Light Ion Engine Engine Light Ion Engine Propulsion Aluminum Leg Leg Aluminum Leg Utility Small Storage Unit Device Structural Scanner Storage Small Storage Unit Protection Core Shielding Weapon Small Laser Energy Gun Small Laser Ballistic Gun Assault Rifle Build | -11 -10 -10 ------- Run | Yrd Mat Sub Slots Evolved . | . . . Power . | . . . Propulsion . | . . . Utility . | . . . Weapon . | . . . Parts Attached 11 | 6 3 2 Power 1 | 1 . . Engine 1 | 1 . . Core . | . . . Reactor . | . . . Propulsion 3 | 2 . 1 Treads . | . . . Leg 3 | 2 . 1 Wheel . | . . . Hover . | . . . Flight . | . . . Utility 4 | 1 3 . Device 2 | . 2 . Storage 1 | 1 . . Processor . | . . . Hackware . | . . . Protection 1 | . 1 . Artifact . | . . . Weapon 3 | 2 . 1 Energy Gun 2 | 1 . 1 Energy Cannon . | . . . Ballistic Gun 1 | 1 . . Ballistic Cannon . | . . . Launcher . | . . . Special Weapon . | . . . Impact Weapon . | . . . Slashing Weapon . | . . . Piercing Weapon . | . . . Special Melee Weapon . | . . . Unidentified Prototypes . | . . . Parts Lost 8 | . . 8 Power 1 | . . 1 Propulsion 3 | . . 3 Utility 1 | . . 1 Weapon 3 | . . 3 Highest Loss Streak 4 | . . 4 To Critical Strikes . | . . . Average Backups 6 | 3 7 6 Power 1 | . 1 1 Propulsion 3 | 1 4 3 Utility . | . . . Weapon 1 | . 1 . Tool/Special . | . . . Unused Backups 13 | . 6 7 Power 2 | . . 2 Propulsion 7 | . 4 3 Utility 1 | . . 1 Weapon 3 | . 2 1 Tool/Special . | . . . Average Slot Usage (%) 94 | . 99 90 Engine 13 | . 14 12 Leg 26 | . 28 25 Device 4 | . 10 . Storage 14 | . 14 14 Protection 9 | . 3 13 Energy Gun 16 | . 14 18 Ballistic Gun 8 | . 14 4 Peak Build Rating 8 | 6 7 8 Average Rating 6 | 4 6 6 On Entrance 4 | . 6 7 Avg Prop Armor Cover (%) . | . . . Naked Turns . | . . . Heaviest Build 13 | 11 12 13 Greatest Support 20 | 20 20 20 Greatest Overweight (x) 1 | . . 1 Average Overweight (x) . | . . . Largest Inventory Capacity 8 | 8 8 8 Average Capacity 7 | 6 8 8 Most Carried 8 | 6 8 8 Average Carried 6 | 3 7 6 Final Capacity 8 | 8 8 5 Final Carried 8 | 6 8 5 Class Distribution -------------------- 100% | Mutant Dominant Class ---------------- Mutant | -10/Materials Mutant | -10/Subcaves Resources | -11 -10 -10 ----------- Run | Yrd Mat Sub Matter Collected 501 | 207 218 76 Remotely . | . . . Salvage Created 481 | . 383 98 Parts 42 | . 34 8 Haulers Intercepted . | . . . Recyclers Shooed . | . . . Parts Field Recycled . | . . . Retrieved Matter . | . . . Parts Self-Destructed 2 | . . 2 Prevented . | . . . Parts Restored . | . . . Kills | -11 -10 -10 ------- Run | Yrd Mat Sub Combat Hostiles Destroyed 13 | . 11 2 Guns 13 | . 11 2 Classes Destroyed 6 | . 5 1 Worker 1 | . 1 . Builder 1 | . 1 . Watcher 2 | . 2 . Swarmer 6 | . 6 . Grunt 5 | . 5 . Subdweller 2 | . . 2 Best Kill Streak 3 | . 3 2 Combat Bots Only 3 | . 3 2 Max Kills in Single Turn 2 | . 2 1 Gunslinging 1 | . 1 . Exploded . | . . . Melee . | . . . Uniques/NPCs Destroyed . | . . . Combat | -11 -10 -10 -------- Run | Yrd Mat Sub Hostile Shots Fired 89 | . 28 61 Missed 34 | . 10 24 Hits 55 | . 18 37 Projectile 55 | . 18 37 Critical Strikes 1 | . . 1 Damage Taken 1070 | . 216 854 Core 253 | . 38 215 Absorbed by Shields . | . . . Redirected to Shielding 49 | . 2 47 Core Remaining (%) 100 | 100 . . Volleys Fired 83 | . 57 26 Largest 2 | . 2 2 Hottest 105 | . 60 105 Shots Fired 153 | . 106 47 Gun 153 | . 106 47 Cannon . | . . . Launcher . | . . . Special . | . . . Kinetic 63 | . 57 6 Thermal 90 | . 49 41 Explosive . | . . . Electromagnetic . | . . . Robot Hit Streak 15 | . 8 15 Robot Miss Streak 5 | . 4 5 Penetration Max . | . . . Secondary Targets 2 | . 2 . Max Gunslinging Chain 1 | . 1 . Shots Hit Robots 60 | . 42 18 Core Hits 27 | . 24 3 Critical Kills . | . . . Critical Parts Destroyed . | . . . Critical Strikes . | . . . Melee Attacks . | . . . Impact . | . . . Slashing . | . . . Piercing . | . . . Sneak Attacks . | . . . Combat Hostiles . | . . . Follow-up Attacks . | . . . Damage Inflicted 679 | . 521 158 Guns 674 | . 516 158 Cannons . | . . . Explosions . | . . . Melee . | . . . Ramming 5 | . 5 . Kinetic 322 | . 297 25 Thermal 352 | . 219 133 Explosive . | . . . Electromagnetic . | . . . Impact . | . . . Slashing . | . . . Piercing . | . . . Highest Corruption . | . . . Average Corruption . | . . . Corruption Purged . | . . . Corruption Blocked . | . . . Overload Shots . | . . . Overflow Damage . | . . . Projectiles . | . . . Explosions . | . . . Melee . | . . . Knockbacks . | . . . Impact . | . . . Kinetic . | . . . Secondary . | . . . Self-Inflicted Damage . | . . . Shots . | . . . Rammed . | . . . Targets Rammed 1 | . 1 . Kicked 1 | . 1 . Crushed . | . . . Highest Temperature 78 | . 78 17 Average Temperature 25 | . 32 7 Received Heat Transfer 183 | . 96 87 Siege Activations . | . . . Martial Activations . | . . . Shielding Activations . | . . . Robots Disrupted . | . . . Combat Hostiles . | . . . Robots Corrupted . | . . . Combat Hostiles . | . . . Parts Fried . | . . . Impact Corruptions . | . . . Robots Melted . | . . . Combat Hostiles . | . . . Parts Melted 1 | . . 1 Heat Transferred 810 | . 500 310 Parts Sabotaged . | . . . Parts Stolen . | . . . Parts Stripped . | . . . Power Chain Reactions . | . . . Alert | -11 -10 -10 ------- Run | Yrd Mat Sub Maximum Alert Level . | . . . Low Security (%) 100 | 100 100 . Level 1 . | . . . Level 2 . | . . . Level 3 . | . . . Level 4 . | . . . Level 5 . | . . . High Security . | . . . Max Security . | . . . Peak Influence 148 | . 148 . Initial . | . . . Average 37 | . 41 . Influence Increases 365 | . 365 . Destroy 0b10 Robot/C 220 | . 220 . Destroy 0b10 Robot/NC 20 | . 20 . Destroy Leader 64 | . 64 . Disable Machine 15 | . 15 . Destroy Structure 1 | . 1 . Lose Combat Pursuer 45 | . 45 . Influence Decreases 365 | . 225 140 Entered New Map 68 | . . 68 Time Decay 297 | . 225 72 Squads Dispatched 5 | . 5 . Investigation 1 | . 1 . Extermination . | . . . Reinforcement 4 | . 4 . Assault . | . . . Garrison . | . . . Intercept . | . . . Searches Triggered . | . . . Construction Impeded . | . . . Haulers Reinforced . | . . . Active Scanning Responses . | . . . Cargo Convoy Interrupts . | . . . Stealth | -11 -10 -10 --------- Run | Yrd Mat Sub Distress Signals 1 | . 1 . Communications Jammed . | . . . Distress Signals . | . . . Times Spotted 32 | . 19 13 Peak Tracking Total 8 | . 4 8 Tactical Retreats 3 | . 1 2 Traps | -11 -10 -10 ------- Run | Yrd Mat Sub Traps Triggered 2 | . 1 1 Indirectly . | . . . Trap Hack Attempts . | . . . Triggered . | . . . Disarmed . | . . . Reprogrammed . | . . . Reused . | . . . Traps Extracted . | . . . Installed . | . . . Triggered . | . . . Machines | -11 -10 -10 ---------- Run | Yrd Mat Sub Machines Disabled 1 | . 1 . Max in Single Turn 1 | . 1 . Machines Repaired . | . . . Machines Dismantled . | . . . Machines Sabotaged . | . . . Overloaded Fab Kills . | . . . Hacking | -11 -10 -10 --------- Run | Yrd Mat Sub Machines Accessed 2 | . 1 1 Terminals 1 | . 1 . Fabricators . | . . . Repair Stations . | . . . Recycling Units . | . . . Scanalyzers . | . . . Garrison Access . | . . . Total Hacks 8 | . 4 4 Successful 5 | . 1 4 Failed 3 | . 3 . Catastrophic . | . . . Database Lockouts . | . . . Manual . | . . . Terminals 4 | . 4 . Fabricators . | . . . Repair Stations . | . . . Recycling Units . | . . . Scanalyzers . | . . . Garrison Access . | . . . Terminal Hacks 5 | . 1 4 Record 4 | . . 4 Dispatch Records 1 | . 1 . Fabricator Hacks . | . . . Repair Station Hacks . | . . . Recycling Unit Hacks . | . . . Scanalyzer . | . . . Garrison Access Hacks . | . . . Unauthorized Hacks . | . . . Terminals . | . . . Fabricators . | . . . Repair Stations . | . . . Recycling Units . | . . . Scanalyzers . | . . . Garrison Access . | . . . Data Cores Recovered . | . . . Used . | . . . Hacking Detections 1 | . 1 . Full Trace Events . | . . . Feedback Events . | . . . Feedback Blocked . | . . . Robot Schematics Acquired . | . . . Robots Built . | . . . Authchips . | . . . Time . | . . . Total Robot Build Rating . | . . . Part Schematics Acquired . | . . . Parts Built . | . . . Authchips . | . . . Time . | . . . Total Part Build Rating . | . . . Part Studies Acquired . | . . . Parts Repaired . | . . . Time . | . . . Parts Recycled . | . . . Recycled Matter . | . . . Retrieved Matter . | . . . Retrieved Components . | . . . Parts Scanalyzed . | . . . Part Schematics Acquired . | . . . Parts Damaged . | . . . Bothacking | -11 -10 -10 ------------ Run | Yrd Mat Sub Used RIF Installer . | . . . Robots Hacked . | . . . Non-combat . | . . . Combat . | . . . Robot Hacks Applied . | . . . Relay Couplers Released . | . . . Fabnet Peak Effective % . | . . . Robots Rewired . | . . . Allies Hacked . | . . . Hacks Repelled . | . . . Allies | -11 -10 -10 -------- Run | Yrd Mat Sub Total Allies . | . . . Largest Group . | . . . Highest-Rated Group . | . . . Highest-Rated Ally . | . . . Total Orders . | . . . Ally Attacks . | . . . Total Damage . | . . . Kills . | . . . Allies Corrupted . | . . . Allies Melted 1 | . . 1 Intel | -11 -10 -10 ------- Run | Yrd Mat Sub Active Infowar (turns) 500 | . 490 10 Structural 500 | . 490 10 Robot Analysis Total . | . . . Derelict Logs Recovered . | . . . Drone Launches . | . . . Drone Recoveries . | . . . Exploration | -11 -10 -10 ------------- Run | Yrd Mat Sub Turns Passed 1631 | 71 684 876 Spaces Moved 1130 | 49 420 661 Core 15 | 12 . 3 Treads . | . . . Legs 1115 | 37 420 658 Wheels . | . . . Hover . | . . . Flight . | . . . Fastest Speed 50 | 50 120 50 Average Speed 119 | 102 120 119 Slowest Speed 120 | 120 120 120 Overloaded Moves . | . . . Propulsion Burnouts . | . . . Robots Hopped . | . . . Potential Cave-ins . | . . . Cave-ins Triggered . | . . . Exploration Rate (%) 35 | 3 71 31 Regions Visited 2 Branch Regions 1 Pre-discovered Areas . | . . . Known Exits Taken . | . . . Unknown Exits Taken 2 | 1 1 . Scrap Searched 3 | . . 3 Spaces Dug . | . . . Terrain Destroyed . | . . . Melee . | . . . Projectile . | . . . AOE . | . . . Terrain Rammed . | . . . Walls Destroyed . | . . . Machines Disabled . | . . . Actions | -11 -10 -10 --------- Run | Yrd Mat Sub Total 1263 | 69 497 697 Wait 3 | 3 . . Move 1128 | 48 419 661 Hop . | . . . Pick Up 24 | 12 10 2 Fast Attach 1 | . . 1 Attach 10 | 6 2 2 Detach . | . . . Swap 2 | . 1 1 Drop 11 | . 7 4 Fire 83 | . 57 26 Melee . | . . . Ram . | . . . Kick 1 | . 1 . Crush . | . . . Escape Stasis . | . . . Rewire . | . . . Trap . | . . . Miscellaneous . | . . . Route ------- -11/Scrapyard -10/Materials (discovered 3 exits: [*Mat] / [*Min] / *Sub) -10/Subcaves (discovered 3 exits: Mat x2 / Rec) History --------- Turn | Location | Event 8 | -11/Scrapyard | Discovered new exit (range 15) 72 | -11/Scrapyard | Entered Materials 209 | -10/Materials | Discovered new exit (range 3) 306 | -10/Materials | Build established: Mutant 529 | -10/Materials | Discovered new exit (range 9) 723 | -10/Materials | Discovered new exit (range 5) 756 | -10/Materials | Entered Subcaves 757 | -10/Subcaves | Approached by a straggling Scientist 760 | -10/Subcaves | A swath of the cavern ceiling suddenly collapsed 917 | -10/Subcaves | Visited Clippyterm 920 | -10/Subcaves | Identified exit to Materials 920 | -10/Subcaves | Identified exit to Recycling 920 | -10/Subcaves | Learned Factory trap positions 1248 | -10/Subcaves | Ambushed by swarm of Subdwellers 1253 | -10/Subcaves | Ambushed by Subdwellers from Twisted Machinery 1253 | -10/Subcaves | Ambushed by Subdwellers from Twisted Machinery 1460 | -10/Subcaves | Shifting Twisted Machinery released Barrage Gun 1476 | -10/Subcaves | Core integrity fell below 50% 1524 | -10/Subcaves | Lost 4 parts (1n3w) 1567 | -10/Subcaves | Core integrity fell below 20% 1632 | -10/Subcaves | Destroyed by YA-N4V(R) with Subdweller Machine Gun Last Messages --------------- 01266_ HV Slug penetrates Twisted Machinery. 01267_ TK-BPZ(R) destroyed. 01273_ Acquired 10 matter. 01278_ C6-70Q(u) tweaks Twisted Machinery. 01281_ N0-KIN(R) suffers critical hit (Burn). 01281_ N0-KIN(R) destroyed. 01284_ C6-70Q(u) builds Twisted Machinery. Barrage Gun falls loose from the Twisted Machinery. 01462_ Triggered Piercing Trap. 01462_ Spikes shoot up from the floor. 01462_ Critical hit (Impale). 01462_ Particle Gun destroyed. 01469_ Sml. Laser destroyed. 01480_ Assault Rifle destroyed. 01493_ Aluminum Leg destroyed. 01540_ Lgt. Ion Engine destroyed. 01577_ Acquired 4 matter. 01630_ Aluminum Leg destroyed. 01632_ Sml. Storage Unit destroyed. Map ----- +----------------------------------------------------+ | ??????????????????????????????????????????? | | ??????????????????????????????????????????? | | ?????????????????????????????????????????? | | ?????????????????????????????????????????? | | ????????????????????????????????????????? | | ????????????????????????????????????????? | | #????????????????????????????????????????? | | ##???????????????????????????????????????? | | ????????????????????????????????????????? | | ?##### ????????????????????????????????????????? | | ?????# ?????????????????????????????????????????? | | ???###%!???###???????????????????????????????????? | | ??## !#??## #???????????????????????????????????? | | ?## #?## #???????????????????????????????????? | | ?? #?# ##???####???????????????????????????? | | ???# ### #?## #???????????????????????????? | | #??# ## ### ????????????????????????????? | | #### ## #?????????????????????????????? | | %## ## #??????????????????????????????? | | &!*] ## ##?????????????????????????????? | | #!%& ##????????????????????????????? | | """! ####?????????????????????????? | | ##" "## ####??????????????????????? | | ## #### ##?????????????????????? | | # #??## #####?????????????????? | | ## ##???## @ #?????????????????? | | #### #?????##### ### ##????????????????? | | #??####?????????######## #????????????????? | | ?????????????????????## #####????????????????? | | ?????????????????????# #????????????????????? | | ?????????????????????# #????????????????????? | | ?????????????????????# ###??????????????????? | | ?????????????????????# #??????????????????? | | ?????????????????????# #??????????????????? | | ?????????????????????### ##??????????????????? | | ???????????????????????# #???????????????????? | | ???????????????????????# ##??????????????????? | | ???????????????????????## #??????????????????? | | ???????????????????????## ######????????????????? | | ?????????????????????### #? ##???????????????? | | ?????????????????????# ## ##? ##??????????????? | | ?????????????????????# ##?# ##?????????????? | | ?????????????????????# ### #?????????????? | | ?????????????????????#### #?????????????? | | ????????????????????????## #?????????????? | | ?????????????????????????# ##?????????????? | | ??##?????????????????????### ##??????????????? | | ?# #?????????????????????#### ##???????????????? | | # #?????????????????????# ## ##???????????????? | | #??????????????????????# ##??????????????? | +----------------------------------------------------+ Best States ------------- Heat Dissipation 35 Energy Generation 10 Energy Capacity 125 Matter Stores 300 Matter Capacity 300 Sight Range 16 Terrain Scan Density 10 Core Shielding 20 Evasion (%) 55 Item Schematics ----------------- None Robot Schematics ------------------ None Fabricated ------------ Nothing Repaired ---------- Nothing Studied --------- None Alien Tech Used ----------------- None Achievements -------------- None Challenges ------------ None Game ------ Seed SpreadGhostLoader Manual? 0 Play Time 00:20:12 Cumulative 3.1 hours Start 2026.03.22 @ 13:16:17 End 2026.03.22 @ 13:32:34 Sessions 1 Manual Loads 0 Difficulty Rogue Special Mode None Game No. 8 Rogue 8 Adventurer 0 Explorer 0 Win Type - Total 0 Types 0/0/0/0/0/0/0/0/0/0 Lore% 1 Gallery% 5 Achievement% 6 Wizard Run 0 Options --------- Layout 1 ASCII 0 Keyboard 0 Movement Mouse Keybinds 0 Fullscreen 2 Font 24/Smallcaps Map View 50x35 Zoom Use 17% Tactical HUD 1 Map Filters NONE Filters NONE Steam 1 RUN: ebef63cf-dc44-4f87-90ec-93b7bf7ab22c